Body Name,Document Number,Service,Type of Expenditure,Invoice Date,Supplier Name,Cost to the Council (Amount Exc VAT),Month
EREWASH BOROUGH COUNCIL,22483,Homelessness                  ,Temporary Accommodation       ,31-Mar-2023,A38 WOODLANDS                           ,290.00,Apr-23
EREWASH BOROUGH COUNCIL,22485,Homelessness                  ,Temporary Accommodation       ,31-Mar-2023,A38 WOODLANDS                           ,290.00,Apr-23
EREWASH BOROUGH COUNCIL,22735,Homelessness                  ,Temporary Accommodation       ,10-Apr-2023,A38 WOODLANDS                           ,406.00,Apr-23
EREWASH BOROUGH COUNCIL,22736,Homelessness                  ,Temporary Accommodation       ,10-Apr-2023,A38 WOODLANDS                           ,522.00,Apr-23
EREWASH BOROUGH COUNCIL,22737,Homelessness                  ,Temporary Accommodation       ,10-Apr-2023,A38 WOODLANDS                           ,522.00,Apr-23
EREWASH BOROUGH COUNCIL,22153,Homelessness                  ,Temporary Accommodation       ,27-Mar-2023,A38 WOODLANDS                           ,290.00,Apr-23
EREWASH BOROUGH COUNCIL,22508,Homelessness                  ,Temporary Accommodation       ,06-Mar-2023,A38 WOODLANDS                           ,290.00,Apr-23
EREWASH BOROUGH COUNCIL,21198,Homelessness                  ,Temporary Accommodation       ,27-Feb-2023,A38 WOODLANDS                           ,336.00,Apr-23
EREWASH BOROUGH COUNCIL,21398,Homelessness                  ,Temporary Accommodation       ,06-Mar-2023,A38 WOODLANDS                           ,336.00,Apr-23
EREWASH BOROUGH COUNCIL,21196,Homelessness                  ,Temporary Accommodation       ,27-Feb-2023,A38 WOODLANDS                           ,290.00,Apr-23
EREWASH BOROUGH COUNCIL,21397,Homelessness                  ,Temporary Accommodation       ,06-Mar-2023,A38 WOODLANDS                           ,406.00,Apr-23
EREWASH BOROUGH COUNCIL,21632,Homelessness                  ,Temporary Accommodation       ,13-Mar-2023,A38 WOODLANDS                           ,406.00,Apr-23
EREWASH BOROUGH COUNCIL,21960,Homelessness                  ,Temporary Accommodation       ,20-Mar-2023,A38 WOODLANDS                           ,406.00,Apr-23
EREWASH BOROUGH COUNCIL,22152,Homelessness                  ,Temporary Accommodation       ,27-Mar-2023,A38 WOODLANDS                           ,406.00,Apr-23
EREWASH BOROUGH COUNCIL,23302,Training - HR Only            ,Courses and Seminars          ,21-Apr-2023,ABC FOOD LAW LIMITED                    ,"1,575.00",Apr-23
EREWASH BOROUGH COUNCIL,22248,Merlin Way Depot              ,PPM Mechanical and Equipment  ,27-Mar-2023,ACCESS DOORS LTD                        ,"1,065.00",Apr-23
EREWASH BOROUGH COUNCIL,22273,Housing Benefit Administration,Project Grants                ,27-Mar-2023,ADVANCED BUSINESS SOFTWARE & SOLUTIONS L,"3,804.17",Apr-23
EREWASH BOROUGH COUNCIL,22273,Housing Benefit Administration,Project Grants                ,27-Mar-2023,ADVANCED BUSINESS SOFTWARE & SOLUTIONS L,"1,801.15",Apr-23
EREWASH BOROUGH COUNCIL,23827,Treasury and Bank Charges     ,Allpay/Post Office Charges    ,30-Apr-2023,ALLPAY LIMITED                          ,910.18,Apr-23
EREWASH BOROUGH COUNCIL,22497,Pedestrian Zones - Ilk and LE ,PPM Mechanical and Equipment  ,31-Mar-2023,ALPHA PARTNER (MIDLANDS)  LIMITED       ,390.00,Apr-23
EREWASH BOROUGH COUNCIL,22498,Pedestrian Zones - Ilk and LE ,PPM Mechanical and Equipment  ,31-Mar-2023,ALPHA PARTNER (MIDLANDS)  LIMITED       ,450.00,Apr-23
EREWASH BOROUGH COUNCIL,22493,Pedestrian Zones - Ilk and LE ,PPM Mechanical and Equipment  ,31-Mar-2023,ALPHA PARTNER (MIDLANDS)  LIMITED       ,510.00,Apr-23
EREWASH BOROUGH COUNCIL,22012,Property and Estates          ,Planned Preventative Maintenan,16-Mar-2023,ALPHA PARTNER (MIDLANDS)  LIMITED       ,"3,018.00",Apr-23
EREWASH BOROUGH COUNCIL,22012,Property and Estates          ,Planned Preventative Maintenan,16-Mar-2023,ALPHA PARTNER (MIDLANDS)  LIMITED       ,466.00,Apr-23
EREWASH BOROUGH COUNCIL,21681,Property and Estates          ,Planned Preventative Maintenan,08-Mar-2023,ALPHA PARTNER (MIDLANDS)  LIMITED       ,654.00,Apr-23
EREWASH BOROUGH COUNCIL,22499,Property and Estates          ,Repairs and Maintenance       ,31-Mar-2023,ALPHA PARTNER (MIDLANDS)  LIMITED       ,320.00,Apr-23
EREWASH BOROUGH COUNCIL,22456,Property and Estates          ,Repairs and Maintenance       ,30-Mar-2023,ALPHA PARTNER (MIDLANDS)  LIMITED       ,340.00,Apr-23
EREWASH BOROUGH COUNCIL,22253,Property and Estates          ,Repairs and Maintenance       ,28-Mar-2023,ALPHA PARTNER (MIDLANDS)  LIMITED       ,"1,431.00",Apr-23
EREWASH BOROUGH COUNCIL,21939,Property and Estates          ,Repairs and Maintenance       ,17-Mar-2023,ALPHA PARTNER (MIDLANDS)  LIMITED       ,380.00,Apr-23
EREWASH BOROUGH COUNCIL,21941,Property and Estates          ,Repairs and Maintenance       ,17-Mar-2023,ALPHA PARTNER (MIDLANDS)  LIMITED       ,450.00,Apr-23
EREWASH BOROUGH COUNCIL,22494,Property and Estates          ,Reactive Maintenance          ,31-Mar-2023,ALPHA PARTNER (MIDLANDS)  LIMITED       ,300.00,Apr-23
EREWASH BOROUGH COUNCIL,22443,Property and Estates          ,Reactive Maintenance          ,30-Mar-2023,ALPHA PARTNER (MIDLANDS)  LIMITED       ,380.00,Apr-23
EREWASH BOROUGH COUNCIL,22495,Property and Estates          ,Reactive Maintenance          ,31-Mar-2023,ALPHA PARTNER (MIDLANDS)  LIMITED       ,540.00,Apr-23
EREWASH BOROUGH COUNCIL,22442,Property and Estates          ,Reactive Maintenance          ,30-Mar-2023,ALPHA PARTNER (MIDLANDS)  LIMITED       ,780.00,Apr-23
EREWASH BOROUGH COUNCIL,22251,Property and Estates          ,Reactive Maintenance          ,28-Mar-2023,ALPHA PARTNER (MIDLANDS)  LIMITED       ,891.52,Apr-23
EREWASH BOROUGH COUNCIL,22491,Property and Estates          ,Reactive Maintenance          ,31-Mar-2023,ALPHA PARTNER (MIDLANDS)  LIMITED       ,995.77,Apr-23
EREWASH BOROUGH COUNCIL,22475,Property and Estates          ,Reactive Maintenance          ,30-Mar-2023,ALPHA PARTNER (MIDLANDS)  LIMITED       ,"1,399.00",Apr-23
EREWASH BOROUGH COUNCIL,22250,Property and Estates          ,Reactive Maintenance          ,28-Mar-2023,ALPHA PARTNER (MIDLANDS)  LIMITED       ,"1,792.50",Apr-23
EREWASH BOROUGH COUNCIL,22461,Property and Estates          ,Reactive Maintenance          ,30-Mar-2023,ALPHA PARTNER (MIDLANDS)  LIMITED       ,"1,960.00",Apr-23
EREWASH BOROUGH COUNCIL,22249,Property and Estates          ,Reactive Maintenance          ,28-Mar-2023,ALPHA PARTNER (MIDLANDS)  LIMITED       ,"1,991.00",Apr-23
EREWASH BOROUGH COUNCIL,22106,Property and Estates          ,Reactive Maintenance          ,24-Mar-2023,ALPHA PARTNER (MIDLANDS)  LIMITED       ,"1,170.00",Apr-23
EREWASH BOROUGH COUNCIL,21938,Property and Estates          ,Reactive Maintenance          ,17-Mar-2023,ALPHA PARTNER (MIDLANDS)  LIMITED       ,430.00,Apr-23
EREWASH BOROUGH COUNCIL,21940,Property and Estates          ,Reactive Maintenance          ,17-Mar-2023,ALPHA PARTNER (MIDLANDS)  LIMITED       ,540.00,Apr-23
EREWASH BOROUGH COUNCIL,21937,Property and Estates          ,Reactive Maintenance          ,17-Mar-2023,ALPHA PARTNER (MIDLANDS)  LIMITED       ,550.00,Apr-23
EREWASH BOROUGH COUNCIL,22269,Civic Accommodation Long Eaton,Planned Preventative Maintenan,28-Mar-2023,ALPHA PARTNER (MIDLANDS)  LIMITED       ,"2,886.00",Apr-23
EREWASH BOROUGH COUNCIL,22451,Civic Accommodation Ilkeston  ,Planned Preventative Maintenan,30-Mar-2023,ALPHA PARTNER (MIDLANDS)  LIMITED       ,"3,185.00",Apr-23
EREWASH BOROUGH COUNCIL,21934,ICT Support Services          ,Equipment Leasing Charge      ,17-Mar-2023,ANNODATA LIMITED                        ,"2,634.42",Apr-23
EREWASH BOROUGH COUNCIL,22191,ICT Support Services          ,General Equipment             ,22-Mar-2023,ANTALIS DOCUMENT SUPPLIES               ,475.50,Apr-23
EREWASH BOROUGH COUNCIL,22267,ICT Support Services          ,General Equipment             ,27-Mar-2023,ANTALIS DOCUMENT SUPPLIES               ,526.00,Apr-23
EREWASH BOROUGH COUNCIL,22978,EBC Balance Sheet             ,AR Refunds Control Account    ,18-Apr-2023,AR Refunds BACS                         ,500.00,Apr-23
EREWASH BOROUGH COUNCIL,23280,EBC Balance Sheet             ,AR Refunds Control Account    ,25-Apr-2023,AR Refunds BACS                         ,500.00,Apr-23
EREWASH BOROUGH COUNCIL,22561,Street Scene                  ,Materials and Consumables     ,03-Apr-2023,ARCO                                    ,339.36,Apr-23
EREWASH BOROUGH COUNCIL,22464,Community Grants              ,Grants and Subscriptions      ,30-Mar-2023,ARENA COMMUNITY                         ,"1,000.00",Apr-23
EREWASH BOROUGH COUNCIL,22186,Homelessness                  ,Temporary Accommodation       ,22-Mar-2023,ASCOT HOTEL                             ,280.00,Apr-23
EREWASH BOROUGH COUNCIL,22185,Homelessness                  ,Temporary Accommodation       ,15-Mar-2023,ASCOT HOTEL                             ,280.00,Apr-23
EREWASH BOROUGH COUNCIL,20986,Homelessness                  ,Temporary Accommodation       ,08-Feb-2023,ASCOT HOTEL                             ,280.00,Apr-23
EREWASH BOROUGH COUNCIL,20987,Homelessness                  ,Temporary Accommodation       ,15-Feb-2023,ASCOT HOTEL                             ,280.00,Apr-23
EREWASH BOROUGH COUNCIL,21486,Homelessness                  ,Temporary Accommodation       ,22-Feb-2023,ASCOT HOTEL                             ,280.00,Apr-23
EREWASH BOROUGH COUNCIL,21487,Homelessness                  ,Temporary Accommodation       ,01-Mar-2023,ASCOT HOTEL                             ,280.00,Apr-23
EREWASH BOROUGH COUNCIL,21488,Homelessness                  ,Temporary Accommodation       ,08-Mar-2023,ASCOT HOTEL                             ,280.00,Apr-23
EREWASH BOROUGH COUNCIL,22580,ICT Support Services          ,Software Licences             ,03-Apr-2023,AXESS SYSTEMS LTD                       ,531.48,Apr-23
EREWASH BOROUGH COUNCIL,22580,ICT Support Services          ,Software Licences             ,03-Apr-2023,AXESS SYSTEMS LTD                       ,"6,594.00",Apr-23
EREWASH BOROUGH COUNCIL,21460,ICT Support Services          ,Data Lines                    ,07-Mar-2023,AXESS SYSTEMS LTD                       ,564.00,Apr-23
EREWASH BOROUGH COUNCIL,22513,ICT Support Services          ,Security                      ,31-Mar-2023,AXESS SYSTEMS LTD                       ,"13,491.29",Apr-23
EREWASH BOROUGH COUNCIL,22513,ICT Support Services          ,Security                      ,31-Mar-2023,AXESS SYSTEMS LTD                       ,"12,788.61",Apr-23
EREWASH BOROUGH COUNCIL,22513,ICT Support Services          ,Security                      ,31-Mar-2023,AXESS SYSTEMS LTD                       ,"8,967.61",Apr-23
EREWASH BOROUGH COUNCIL,22211,Planning                      ,Structural Property Works     ,24-Mar-2023,BAILY GARNER LLP                        ,478.80,Apr-23
EREWASH BOROUGH COUNCIL,21660,Planning                      ,Structural Property Works     ,07-Mar-2023,BAILY GARNER LLP                        ,936.00,Apr-23
EREWASH BOROUGH COUNCIL,21978,Civic Accommodation Long Eaton,Window Cleaning               ,19-Mar-2023,BANNER GROUP LIMITED                    ,368.22,Apr-23
EREWASH BOROUGH COUNCIL,22158,Civic Accommodation Ilkeston  ,Window Cleaning               ,20-Mar-2023,BANNER GROUP LIMITED                    ,793.04,Apr-23
EREWASH BOROUGH COUNCIL,21678,Civic Accommodation Ilkeston  ,Vending Machine Provisions    ,07-Mar-2023,BANNER GROUP LIMITED                    ,275.84,Apr-23
EREWASH BOROUGH COUNCIL,22295,Pedestrian Zones - Ilk and LE ,Reactive Maintenance          ,28-Mar-2023,BB INSTALLATIONS LTD                    ,930.00,Apr-23
EREWASH BOROUGH COUNCIL,22261,Internal Audit                ,Consultants Fees              ,27-Mar-2023,BDO                                     ,"14,280.00",Apr-23
EREWASH BOROUGH COUNCIL,22564,Parish Precepts               ,Parish Precepts               ,04-Apr-2023,BREADSALL PARISH COUNCIL                ,"19,000.00",Apr-23
EREWASH BOROUGH COUNCIL,22564,Parish Council Concurrent Func,Parish Concurrent Grants      ,04-Apr-2023,BREADSALL PARISH COUNCIL                ,"4,900.00",Apr-23
EREWASH BOROUGH COUNCIL,22565,Parish Precepts               ,Parish Precepts               ,04-Apr-2023,BREASTON PARISH COUNCIL                 ,"74,719.20",Apr-23
EREWASH BOROUGH COUNCIL,22565,Parish Council Concurrent Func,Parish Concurrent Grants      ,04-Apr-2023,BREASTON PARISH COUNCIL                 ,"41,378.00",Apr-23
EREWASH BOROUGH COUNCIL,23257,ICT Support Services          ,Telephones                    ,22-Apr-2023,BRITISH TELECOMMUNICATIONS PLC          ,290.15,Apr-23
EREWASH BOROUGH COUNCIL,22746,Dog Control                   ,Kennelling Costs              ,31-Mar-2023,BROOKFIELD FARM KENNELS & CATTERY       ,270.00,Apr-23
EREWASH BOROUGH COUNCIL,22465,Shared Prosperity             ,Fees Costs and Expenses       ,13-Mar-2023,BROWNE JACOBSON                         ,"2,584.10",Apr-23
EREWASH BOROUGH COUNCIL,21268,Street Scene                  ,Materials and Consumables     ,28-Feb-2023,BROXAP LIMITED                          ,579.00,Apr-23
EREWASH BOROUGH COUNCIL,22710,CCTV - Ilkeston and Long Eaton,Phone Line Rental             ,03-Apr-2023,BT REDCARE                              ,"9,739.64",Apr-23
EREWASH BOROUGH COUNCIL,22702,Infec Disease & Food Poisoning,Contracted Services           ,04-Apr-2023,BUCKINGHAM FUTURES LIMITED              ,"2,164.00",Apr-23
EREWASH BOROUGH COUNCIL,22103,Infec Disease & Food Poisoning,Contracted Services           ,22-Mar-2023,BUCKINGHAM FUTURES LIMITED              ,"2,156.32",Apr-23
EREWASH BOROUGH COUNCIL,22458,Infec Disease & Food Poisoning,Contracted Services           ,29-Mar-2023,BUCKINGHAM FUTURES LIMITED              ,"2,159.70",Apr-23
EREWASH BOROUGH COUNCIL,21899,Urban Renewal                 ,Agency Staff                  ,15-Mar-2023,BUCKINGHAM FUTURES LIMITED              ,"1,416.30",Apr-23
EREWASH BOROUGH COUNCIL,22182,External Audit                ,Audit Fees                    ,16-Mar-2023,CABINET OFFICE                          ,"2,535.00",Apr-23
EREWASH BOROUGH COUNCIL,22263,Infec Disease & Food Poisoning,Contracted Services           ,27-Mar-2023,CCS MEDIA LIMITED                       ,"1,137.50",Apr-23
EREWASH BOROUGH COUNCIL,21753,ICT Support Services          ,General Equipment             ,13-Mar-2023,CCS MEDIA LIMITED                       ,617.58,Apr-23
EREWASH BOROUGH COUNCIL,21752,ICT Support Services          ,General Equipment             ,13-Mar-2023,CCS MEDIA LIMITED                       ,975.00,Apr-23
EREWASH BOROUGH COUNCIL,22263,Sports Devt Coaching & Courses,Car Allowance                 ,27-Mar-2023,CCS MEDIA LIMITED                       ,162.50,Apr-23
EREWASH BOROUGH COUNCIL,21950,ICT Support Services          ,GIS Software Licences         ,15-Mar-2023,CDR GROUP                               ,"3,450.00",Apr-23
EREWASH BOROUGH COUNCIL,22268,Accountancy                   ,Reference Literature and Publi,23-Mar-2023,CHARTERED INSTITUTE OF PUBLIC FINANCE & ,365.00,Apr-23
EREWASH BOROUGH COUNCIL,22203,Accountancy                   ,Reference Literature and Publi,23-Mar-2023,CHARTERED INSTITUTE OF PUBLIC FINANCE & ,"1,750.00",Apr-23
EREWASH BOROUGH COUNCIL,23239,EBC Balance Sheet             ,Payroll Coll Acc Attmnt Orders,24-Apr-2023,CHILD MAINTENANCE SERVICE               ,818.01,Apr-23
EREWASH BOROUGH COUNCIL,22104,Revenues and Benefits         ,Software Licences             ,23-Mar-2023,CIVICA UK LIMITED                       ,"9,112.50",Apr-23
EREWASH BOROUGH COUNCIL,21581,ICT Support Services          ,General Equipment             ,08-Mar-2023,CLASS AFFINITY PROJECTS LTD             ,"1,142.23",Apr-23
EREWASH BOROUGH COUNCIL,21581,ICT Support Services          ,Mobile Phones                 ,08-Mar-2023,CLASS AFFINITY PROJECTS LTD             ,"1,168.38",Apr-23
EREWASH BOROUGH COUNCIL,21481,Car Parking                   ,Planned Preventative Maintenan,07-Mar-2023,CLEARWAY (MIDLANDS) LIMITED             ,"1,999.00",Apr-23
EREWASH BOROUGH COUNCIL,22566,Parish Precepts               ,Parish Precepts               ,04-Apr-2023,DALE ABBEY PARISH COUNCIL               ,"12,450.90",Apr-23
EREWASH BOROUGH COUNCIL,22566,Parish Council Concurrent Func,Parish Concurrent Grants      ,04-Apr-2023,DALE ABBEY PARISH COUNCIL               ,"8,612.00",Apr-23
EREWASH BOROUGH COUNCIL,22288,Commissioned Projects         ,Fees Costs and Expenses       ,28-Mar-2023,DECATHLON UK  LTD                       ,300.00,Apr-23
EREWASH BOROUGH COUNCIL,22689,Household Waste Collection    ,Repairs and Maintenance       ,31-Mar-2023,DENNIS EAGLE LTD                        ,495.00,Apr-23
EREWASH BOROUGH COUNCIL,22690,Household Waste Collection    ,Repairs and Maintenance       ,31-Mar-2023,DENNIS EAGLE LTD                        ,"1,595.00",Apr-23
EREWASH BOROUGH COUNCIL,22688,Household Waste Collection    ,Repairs and Maintenance       ,31-Mar-2023,DENNIS EAGLE LTD                        ,"1,985.00",Apr-23
EREWASH BOROUGH COUNCIL,21450,Household Waste Collection    ,Repairs and Maintenance       ,02-Mar-2023,DENNIS EAGLE LTD                        ,429.30,Apr-23
EREWASH BOROUGH COUNCIL,23343,EBC Balance Sheet             ,COV19 Additional Restrictions ,26-Apr-2023,"DEPT FOR BUSINESS, ENERGY & IND STRATEGY","28,774.00",Apr-23
EREWASH BOROUGH COUNCIL,22457,Economic Development          ,Grants and Subscriptions      ,16-Mar-2023,DERBYSHIRE COUNTY COUNCIL...            ,"15,000.00",Apr-23
EREWASH BOROUGH COUNCIL,22582,EBC Balance Sheet             ,Payroll Coll Acc Superanuation,12-Apr-2023,DERBYSHIRE COUNTY COUNCIL...            ,"124,393.69",Apr-23
EREWASH BOROUGH COUNCIL,22582,EBC Balance Sheet             ,Payroll Coll Acc Superanuation,12-Apr-2023,DERBYSHIRE COUNTY COUNCIL...            ,"83,250.00",Apr-23
EREWASH BOROUGH COUNCIL,22590,Regulatory and Housing Service,Disabled Facilities Grant     ,22-Mar-2023,DERBYSHIRE COUNTY COUNCIL...            ,"3,281.00",Apr-23
EREWASH BOROUGH COUNCIL,22589,Regulatory and Housing Service,Disabled Facilities Grant     ,27-Feb-2023,DERBYSHIRE COUNTY COUNCIL...            ,"6,732.67",Apr-23
EREWASH BOROUGH COUNCIL,24121,Human Resources               ,Recruitment Expenses          ,30-Apr-2023,DISCLOSURE & BARRING SERVICE            ,304.00,Apr-23
EREWASH BOROUGH COUNCIL,22567,Parish Precepts               ,Parish Precepts               ,04-Apr-2023,DRAYCOTT PARISH COUNCIL                 ,"75,000.00",Apr-23
EREWASH BOROUGH COUNCIL,22567,Parish Council Concurrent Func,Parish Concurrent Grants      ,04-Apr-2023,DRAYCOTT PARISH COUNCIL                 ,"27,154.00",Apr-23
EREWASH BOROUGH COUNCIL,22089,Revenues and Benefits         ,Stationery                    ,21-Mar-2023,DSI BILLING SERVICES LTD                ,"6,029.81",Apr-23
EREWASH BOROUGH COUNCIL,22089,Revenues and Benefits         ,Stationery                    ,21-Mar-2023,DSI BILLING SERVICES LTD                ,"2,066.00",Apr-23
EREWASH BOROUGH COUNCIL,22089,Revenues and Benefits         ,Stationery                    ,21-Mar-2023,DSI BILLING SERVICES LTD                ,548.00,Apr-23
EREWASH BOROUGH COUNCIL,22090,Revenues and Benefits         ,Postages                      ,21-Mar-2023,DSI BILLING SERVICES LTD                ,"22,488.62",Apr-23
EREWASH BOROUGH COUNCIL,23011,Homelessness                  ,Fees Costs and Expenses       ,18-Apr-2023,EAST MIDLANDS PROPERTY SERVICES LTD     ,"1,975.00",Apr-23
EREWASH BOROUGH COUNCIL,22474,Green Space                   ,Materials and Consumables     ,29-Mar-2023,EAST RIDING HORTICULTURE LTD            ,252.00,Apr-23
EREWASH BOROUGH COUNCIL,22002,Play Areas                    ,Materials and Consumables     ,20-Mar-2023,EASY GATE LTD                           ,657.00,Apr-23
EREWASH BOROUGH COUNCIL,22765,Property and Estates          ,Computer Software             ,08-Mar-2023,ELF SOFTWARE LTD                        ,"5,596.01",Apr-23
EREWASH BOROUGH COUNCIL,21958,Regulatory and Housing Service,Disabled Facilities Grant     ,15-Mar-2023,EMH HOMES                               ,"30,000.00",Apr-23
EREWASH BOROUGH COUNCIL,22190,Revenues and Benefits         ,Stationery                    ,15-Mar-2023,ENCORE ENVELOPES                        ,924.00,Apr-23
EREWASH BOROUGH COUNCIL,22202,Revenues and Benefits         ,Stationery                    ,17-Mar-2023,ENCORE ENVELOPES                        ,936.00,Apr-23
EREWASH BOROUGH COUNCIL,22504,Community Services            ,Stationery                    ,28-Mar-2023,ENVIRONMENT ANALYST                     ,390.00,Apr-23
EREWASH BOROUGH COUNCIL,22255,Community Grants              ,Other Grants                  ,28-Mar-2023,EREWASH COMMUNITY TRANSPORT             ,"6,460.00",Apr-23
EREWASH BOROUGH COUNCIL,23151,EBC Balance Sheet             ,Payroll Coll Acc Labour Party ,20-Apr-2023,EREWASH LABOUR GROUP                    ,521.85,Apr-23
EREWASH BOROUGH COUNCIL,22591,Green Space                   ,Path Repairs                  ,28-Mar-2023,EREWASH PARTNERSHIP (MANAGED WORKSPACE) ,"6,026.93",Apr-23
EREWASH BOROUGH COUNCIL,22473,Toll Bar House                ,Other Expenses                ,28-Mar-2023,EREWASH PARTNERSHIP (MANAGED WORKSPACE) ,"5,000.93",Apr-23
EREWASH BOROUGH COUNCIL,22286,Trade Waste                   ,Bins                          ,29-Mar-2023,ESE WORLD LIMITED                       ,"2,648.88",Apr-23
EREWASH BOROUGH COUNCIL,22286,Trade Waste                   ,Bins                          ,29-Mar-2023,ESE WORLD LIMITED                       ,"1,457.10",Apr-23
EREWASH BOROUGH COUNCIL,22286,Kerbside Recycling Collection ,Bins                          ,29-Mar-2023,ESE WORLD LIMITED                       ,14.50,Apr-23
EREWASH BOROUGH COUNCIL,22011,Development Control           ,Consultants Fees              ,21-Mar-2023,ESSEX COUNTY COUNCIL                    ,"3,420.00",Apr-23
EREWASH BOROUGH COUNCIL,21807,Hackney Carriage Private Hire ,Materials and Consumables     ,14-Mar-2023,EURO BUSINESS SERVICES                  ,343.21,Apr-23
EREWASH BOROUGH COUNCIL,21748,Licensing Liquor Entment Other,Materials and Consumables     ,13-Mar-2023,EURO BUSINESS SERVICES                  ,386.98,Apr-23
EREWASH BOROUGH COUNCIL,22477,Revenues and Benefits         ,Stationery                    ,30-Mar-2023,EURO BUSINESS SERVICES                  ,298.00,Apr-23
EREWASH BOROUGH COUNCIL,22769,Green Space                   ,Materials and Consumables     ,16-Feb-2023,EUROPLANTS UK LTD                       ,"1,210.30",Apr-23
EREWASH BOROUGH COUNCIL,22254,Transport Trading Account     ,Materials and Consumables     ,28-Mar-2023,EUROTRUCK MIDLANDS LTD                  ,201.20,Apr-23
EREWASH BOROUGH COUNCIL,22254,Household Waste Collection    ,Repairs and Maintenance       ,28-Mar-2023,EUROTRUCK MIDLANDS LTD                  ,118.79,Apr-23
EREWASH BOROUGH COUNCIL,21744,Household Waste Collection    ,Repairs and Maintenance       ,13-Mar-2023,EUROTRUCK MIDLANDS LTD                  ,378.00,Apr-23
EREWASH BOROUGH COUNCIL,22528,Household Waste Collection    ,Agency Staff                  ,31-Mar-2023,EXTRA PERSONNEL LTD                     ,"5,832.77",Apr-23
EREWASH BOROUGH COUNCIL,22146,Household Waste Collection    ,Agency Staff                  ,24-Mar-2023,EXTRA PERSONNEL LTD                     ,"5,532.59",Apr-23
EREWASH BOROUGH COUNCIL,21182,Household Waste Collection    ,Agency Staff                  ,17-Feb-2023,EXTRA PERSONNEL LTD                     ,"3,679.36",Apr-23
EREWASH BOROUGH COUNCIL,21965,Household Waste Collection    ,Agency Staff                  ,17-Mar-2023,EXTRA PERSONNEL LTD                     ,"4,452.26",Apr-23
EREWASH BOROUGH COUNCIL,21637,Household Waste Collection    ,Agency Staff                  ,10-Mar-2023,EXTRA PERSONNEL LTD                     ,"5,258.77",Apr-23
EREWASH BOROUGH COUNCIL,21437,Household Waste Collection    ,Agency Staff                  ,03-Mar-2023,EXTRA PERSONNEL LTD                     ,"5,416.21",Apr-23
EREWASH BOROUGH COUNCIL,22523,Trade Waste                   ,Agency Staff                  ,31-Mar-2023,EXTRA PERSONNEL LTD                     ,601.25,Apr-23
EREWASH BOROUGH COUNCIL,22145,Trade Waste                   ,Agency Staff                  ,24-Mar-2023,EXTRA PERSONNEL LTD                     ,601.25,Apr-23
EREWASH BOROUGH COUNCIL,21967,Trade Waste                   ,Agency Staff                  ,17-Mar-2023,EXTRA PERSONNEL LTD                     ,601.25,Apr-23
EREWASH BOROUGH COUNCIL,21633,Trade Waste                   ,Agency Staff                  ,10-Mar-2023,EXTRA PERSONNEL LTD                     ,601.25,Apr-23
EREWASH BOROUGH COUNCIL,22146,Kerbside Recycling Collection ,Agency Staff                  ,24-Mar-2023,EXTRA PERSONNEL LTD                     ,"3,688.39",Apr-23
EREWASH BOROUGH COUNCIL,21182,Kerbside Recycling Collection ,Agency Staff                  ,17-Feb-2023,EXTRA PERSONNEL LTD                     ,"2,452.90",Apr-23
EREWASH BOROUGH COUNCIL,21965,Kerbside Recycling Collection ,Agency Staff                  ,17-Mar-2023,EXTRA PERSONNEL LTD                     ,"2,968.17",Apr-23
EREWASH BOROUGH COUNCIL,21637,Kerbside Recycling Collection ,Agency Staff                  ,10-Mar-2023,EXTRA PERSONNEL LTD                     ,"3,505.84",Apr-23
EREWASH BOROUGH COUNCIL,21966,Development Control           ,Agency Staff                  ,17-Mar-2023,EXTRA PERSONNEL LTD                     ,255.36,Apr-23
EREWASH BOROUGH COUNCIL,21963,Development Control           ,Agency Staff                  ,17-Mar-2023,EXTRA PERSONNEL LTD                     ,590.52,Apr-23
EREWASH BOROUGH COUNCIL,21635,Development Control           ,Agency Staff                  ,10-Mar-2023,EXTRA PERSONNEL LTD                     ,319.20,Apr-23
EREWASH BOROUGH COUNCIL,21634,Development Control           ,Agency Staff                  ,10-Mar-2023,EXTRA PERSONNEL LTD                     ,478.80,Apr-23
EREWASH BOROUGH COUNCIL,22527,Green Space                   ,Agency Staff                  ,31-Mar-2023,EXTRA PERSONNEL LTD                     ,"2,565.50",Apr-23
EREWASH BOROUGH COUNCIL,22524,Green Space                   ,Agency Staff                  ,31-Mar-2023,EXTRA PERSONNEL LTD                     ,"2,923.79",Apr-23
EREWASH BOROUGH COUNCIL,21639,Green Space                   ,Agency Staff                  ,10-Mar-2023,EXTRA PERSONNEL LTD                     ,"2,662.47",Apr-23
EREWASH BOROUGH COUNCIL,22524,Public Conveniences           ,Agency Staff                  ,31-Mar-2023,EXTRA PERSONNEL LTD                     ,500.00,Apr-23
EREWASH BOROUGH COUNCIL,22147,Public Conveniences           ,Agency Staff                  ,24-Mar-2023,EXTRA PERSONNEL LTD                     ,500.00,Apr-23
EREWASH BOROUGH COUNCIL,21968,Public Conveniences           ,Agency Staff                  ,17-Mar-2023,EXTRA PERSONNEL LTD                     ,500.00,Apr-23
EREWASH BOROUGH COUNCIL,21639,Public Conveniences           ,Agency Staff                  ,10-Mar-2023,EXTRA PERSONNEL LTD                     ,500.00,Apr-23
EREWASH BOROUGH COUNCIL,22527,Street Scene                  ,Agency Staff                  ,31-Mar-2023,EXTRA PERSONNEL LTD                     ,"2,565.49",Apr-23
EREWASH BOROUGH COUNCIL,22524,Street Scene                  ,Agency Staff                  ,31-Mar-2023,EXTRA PERSONNEL LTD                     ,"2,923.79",Apr-23
EREWASH BOROUGH COUNCIL,22528,Street Scene                  ,Agency Staff                  ,31-Mar-2023,EXTRA PERSONNEL LTD                     ,"3,888.52",Apr-23
EREWASH BOROUGH COUNCIL,22144,Street Scene                  ,Agency Staff                  ,24-Mar-2023,EXTRA PERSONNEL LTD                     ,"4,586.63",Apr-23
EREWASH BOROUGH COUNCIL,22147,Street Scene                  ,Agency Staff                  ,24-Mar-2023,EXTRA PERSONNEL LTD                     ,"6,091.34",Apr-23
EREWASH BOROUGH COUNCIL,21961,Street Scene                  ,Agency Staff                  ,17-Mar-2023,EXTRA PERSONNEL LTD                     ,"4,598.75",Apr-23
EREWASH BOROUGH COUNCIL,21968,Street Scene                  ,Agency Staff                  ,17-Mar-2023,EXTRA PERSONNEL LTD                     ,"5,155.00",Apr-23
EREWASH BOROUGH COUNCIL,21437,Street Scene                  ,Agency Staff                  ,03-Mar-2023,EXTRA PERSONNEL LTD                     ,"3,610.81",Apr-23
EREWASH BOROUGH COUNCIL,21639,Street Scene                  ,Agency Staff                  ,10-Mar-2023,EXTRA PERSONNEL LTD                     ,"2,662.47",Apr-23
EREWASH BOROUGH COUNCIL,21964,Long Eaton Market             ,Agency Staff                  ,17-Mar-2023,EXTRA PERSONNEL LTD                     ,199.06,Apr-23
EREWASH BOROUGH COUNCIL,21638,Long Eaton Market             ,Agency Staff                  ,10-Mar-2023,EXTRA PERSONNEL LTD                     ,239.77,Apr-23
EREWASH BOROUGH COUNCIL,21964,Ilkeston Market               ,Agency Staff                  ,17-Mar-2023,EXTRA PERSONNEL LTD                     ,132.70,Apr-23
EREWASH BOROUGH COUNCIL,21638,Ilkeston Market               ,Agency Staff                  ,10-Mar-2023,EXTRA PERSONNEL LTD                     ,159.85,Apr-23
EREWASH BOROUGH COUNCIL,22150,Civic Accommodation Ilkeston  ,Agency Staff                  ,24-Mar-2023,EXTRA PERSONNEL LTD                     ,276.66,Apr-23
EREWASH BOROUGH COUNCIL,21636,Civic Accommodation Ilkeston  ,Agency Staff                  ,10-Mar-2023,EXTRA PERSONNEL LTD                     ,276.66,Apr-23
EREWASH BOROUGH COUNCIL,22669,Revenues and Benefits         ,Postages                      ,04-Apr-2023,FRAMA UK LIMITED                        ,"5,000.00",Apr-23
EREWASH BOROUGH COUNCIL,23008,Homelessness                  ,Fees Costs and Expenses       ,12-Apr-2023,FREEDOM COMMUNITY PROJECT               ,978.89,Apr-23
EREWASH BOROUGH COUNCIL,22501,Homelessness                  ,Fees Costs and Expenses       ,13-Feb-2023,FREEDOM COMMUNITY PROJECT               ,622.58,Apr-23
EREWASH BOROUGH COUNCIL,22503,Homelessness                  ,Fees Costs and Expenses       ,13-Mar-2023,FREEDOM COMMUNITY PROJECT               ,876.18,Apr-23
EREWASH BOROUGH COUNCIL,22502,Homelessness                  ,Fees Costs and Expenses       ,13-Mar-2023,FREEDOM COMMUNITY PROJECT               ,"1,018.55",Apr-23
EREWASH BOROUGH COUNCIL,22882,Kerbside Recycling Collection ,Waste Disposal                ,31-Mar-2023,GAE SMITH HOLDINGS T/A CASEPAK          ,"43,923.85",Apr-23
EREWASH BOROUGH COUNCIL,22531,Homelessness                  ,Temporary Accommodation       ,02-Apr-2023,GLOBAL VILLAGE HOTEL & RESORTS LTD      ,360.00,Apr-23
EREWASH BOROUGH COUNCIL,22755,Homelessness                  ,Temporary Accommodation       ,10-Apr-2023,GLOBAL VILLAGE HOTEL & RESORTS LTD      ,840.00,Apr-23
EREWASH BOROUGH COUNCIL,22916,Green Space                   ,Materials and Consumables     ,02-Apr-2023,GO TRAFFIC MANAGEMENT                   ,929.50,Apr-23
EREWASH BOROUGH COUNCIL,22706,Democratic Representation     ,Hire Charges                  ,05-Apr-2023,HALL'S TRAVEL                           ,320.00,Apr-23
EREWASH BOROUGH COUNCIL,23297,Erewash Museum                ,Special Events                ,14-Apr-2023,HENS FOR HIRE                           ,275.00,Apr-23
EREWASH BOROUGH COUNCIL,21683,Green Space                   ,Repairs and Maintenance       ,09-Mar-2023,HENTON & CHATTELL LTD                   ,532.07,Apr-23
EREWASH BOROUGH COUNCIL,22583,Human Resources               ,Apprenticeship Levy           ,19-Apr-2023,HMRC CUMBERNAULD                        ,"2,009.00",Apr-23
EREWASH BOROUGH COUNCIL,22583,Human Resources               ,Apprenticeship Levy           ,19-Apr-2023,HMRC CUMBERNAULD                        ,"1,250.00",Apr-23
EREWASH BOROUGH COUNCIL,22963,EBC Balance Sheet             ,Payroll Coll Acc - Income Tax ,17-Apr-2023,HMRC CUMBERNAULD                        ,"4,019.05",Apr-23
EREWASH BOROUGH COUNCIL,22583,EBC Balance Sheet             ,Payroll Coll Acc - Income Tax ,19-Apr-2023,HMRC CUMBERNAULD                        ,"68,621.01",Apr-23
EREWASH BOROUGH COUNCIL,22585,EBC Balance Sheet             ,Payroll Coll Acc - Income Tax ,19-Apr-2023,HMRC CUMBERNAULD                        ,479.60,Apr-23
EREWASH BOROUGH COUNCIL,22583,EBC Balance Sheet             ,Payroll Coll Acc National Ins ,19-Apr-2023,HMRC CUMBERNAULD                        ,"94,965.77",Apr-23
EREWASH BOROUGH COUNCIL,22585,EBC Balance Sheet             ,Payroll Coll Acc National Ins ,19-Apr-2023,HMRC CUMBERNAULD                        ,536.75,Apr-23
EREWASH BOROUGH COUNCIL,22583,EBC Balance Sheet             ,Payroll Coll Acc Student Loan ,19-Apr-2023,HMRC CUMBERNAULD                        ,"1,291.00",Apr-23
EREWASH BOROUGH COUNCIL,22684,Economic Development          ,Project Grants                ,30-Mar-2023,INSIDE OUT GROUP (EUROPE) LTD           ,275.00,Apr-23
EREWASH BOROUGH COUNCIL,22594,Car Parking                   ,Credit/Debit Card Charges     ,31-Mar-2023,INTERNATIONAL PARKING SYSTEMS UK LTD    ,"3,526.04",Apr-23
EREWASH BOROUGH COUNCIL,22434,Non-domestic Rates Collection ,Qualification Training        ,29-Mar-2023,IRRV                                    ,"3,052.00",Apr-23
EREWASH BOROUGH COUNCIL,22434,Training - HR Only            ,Qualification Training        ,29-Mar-2023,IRRV                                    ,"1,073.00",Apr-23
EREWASH BOROUGH COUNCIL,22687,Commissioned Projects         ,Fees Costs and Expenses       ,30-Mar-2023,JENSON PRESS PRINTERS                   ,475.00,Apr-23
EREWASH BOROUGH COUNCIL,22188,"Police, Crime Commissioner Com",Materials and Consumables     ,22-Mar-2023,JNE SECURITY LIMITED                    ,"3,108.00",Apr-23
EREWASH BOROUGH COUNCIL,22188,"Police, Crime Commissioner Com",Materials and Consumables     ,22-Mar-2023,JNE SECURITY LIMITED                    ,"1,590.00",Apr-23
EREWASH BOROUGH COUNCIL,22188,"Police, Crime Commissioner Com",Materials and Consumables     ,22-Mar-2023,JNE SECURITY LIMITED                    ,"2,070.00",Apr-23
EREWASH BOROUGH COUNCIL,22188,"Police, Crime Commissioner Com",Materials and Consumables     ,22-Mar-2023,JNE SECURITY LIMITED                    ,265.00,Apr-23
EREWASH BOROUGH COUNCIL,22676,EBC Balance Sheet             ,Childcare Salary Sacrifice    ,05-Apr-2023,KIDDIVOUCHERS LTD                       ,578.00,Apr-23
EREWASH BOROUGH COUNCIL,22521,Front Line Support Services   ,Security                      ,31-Mar-2023,KINGS ARMOURED SECURITY SERVICES        ,555.00,Apr-23
EREWASH BOROUGH COUNCIL,22532,Car Parking                   ,Contracted Services           ,31-Mar-2023,KINGS ARMOURED SECURITY SERVICES        ,"1,592.10",Apr-23
EREWASH BOROUGH COUNCIL,21900,Reprographics                 ,Equipment Leasing Charge      ,15-Mar-2023,KONICA MINOLTA BUSINESS SOLUTIONS (UK) L,"1,014.93",Apr-23
EREWASH BOROUGH COUNCIL,21625,Reprographics                 ,Equipment Leasing Charge      ,10-Mar-2023,KONICA MINOLTA BUSINESS SOLUTIONS (UK) L,443.98,Apr-23
EREWASH BOROUGH COUNCIL,21801,Green Space                   ,Materials and Consumables     ,14-Mar-2023,KRM BUILDING SUPPLIES LTD               ,251.28,Apr-23
EREWASH BOROUGH COUNCIL,22751,Building Control Adv & Inform ,Contracted Services           ,06-Mar-2023,LABC                                    ,"4,244.58",Apr-23
EREWASH BOROUGH COUNCIL,22535,Legal Services                ,Stamp Duty and Search Fees    ,01-Apr-2023,LAWYERS IN LOCAL GOVERNMENT             ,315.00,Apr-23
EREWASH BOROUGH COUNCIL,22481,Commissioned Projects         ,Fees Costs and Expenses       ,30-Mar-2023,LEGACY LEISURE LTD                      ,564.00,Apr-23
EREWASH BOROUGH COUNCIL,22481,Commissioned Projects         ,Fees Costs and Expenses       ,30-Mar-2023,LEGACY LEISURE LTD                      ,609.00,Apr-23
EREWASH BOROUGH COUNCIL,22568,Parish Precepts               ,Parish Precepts               ,04-Apr-2023,LITTLE EATON PARISH COUNCIL             ,"20,020.00",Apr-23
EREWASH BOROUGH COUNCIL,22568,Parish Council Concurrent Func,Parish Concurrent Grants      ,04-Apr-2023,LITTLE EATON PARISH COUNCIL             ,"11,724.00",Apr-23
EREWASH BOROUGH COUNCIL,23026,Treasury and Bank Charges     ,Bank Charges                  ,12-Apr-2023,LLOYDS BANK PLC                         ,645.90,Apr-23
EREWASH BOROUGH COUNCIL,23165,Human Resources               ,Subscriptions                 ,01-Apr-2021,LNRS DATA SERVICES LTD                  ,980.00,Apr-23
EREWASH BOROUGH COUNCIL,24022,Chief Executives Office       ,Subscription Local Govt Assoc ,03-Apr-2023,LOCAL GOVERNMENT ASSOCIATION            ,"11,089.63",Apr-23
EREWASH BOROUGH COUNCIL,22272,Accountancy                   ,Agency Staff                  ,26-Mar-2023,MACILDOWIE RECRUITMENT EXPERTISE        ,"1,204.92",Apr-23
EREWASH BOROUGH COUNCIL,22593,Accountancy                   ,Agency Staff                  ,02-Apr-2023,MACILDOWIE RECRUITMENT EXPERTISE        ,"1,238.32",Apr-23
EREWASH BOROUGH COUNCIL,22252,Car Parking                   ,Planned Preventative Maintenan,27-Mar-2023,MANDERS FENCING & GARDEN SERVICES       ,"3,600.00",Apr-23
EREWASH BOROUGH COUNCIL,23024,Housing Strategy              ,Consultants Fees              ,17-Apr-2023,MARCHES ENERGY AGENCY                   ,"1,925.00",Apr-23
EREWASH BOROUGH COUNCIL,23320,Insurances (Corporate Matters),Insurance                     ,31-Mar-2023,MARSH LTD                               ,"1,596.28",Apr-23
EREWASH BOROUGH COUNCIL,23319,Insurances (Corporate Matters),Insurance                     ,31-Mar-2023,MARSH LTD                               ,"2,469.87",Apr-23
EREWASH BOROUGH COUNCIL,23323,Insurances (Corporate Matters),Insurance                     ,31-Mar-2023,MARSH LTD                               ,"83,469.12",Apr-23
EREWASH BOROUGH COUNCIL,23321,Insurances (Corporate Matters),Insurance                     ,31-Mar-2023,MARSH LTD                               ,"103,425.11",Apr-23
EREWASH BOROUGH COUNCIL,23322,Insurances (Corporate Matters),Insurance                     ,31-Mar-2023,MARSH LTD                               ,"275,228.58",Apr-23
EREWASH BOROUGH COUNCIL,22668,,,31-Mar-2023,MARSTON HOLDINGS LIMITED                ,270.27,Apr-23
EREWASH BOROUGH COUNCIL,22453,Building Control - Fee Earning,Agency Staff                  ,30-Mar-2023,MATCHTECH GROUP (UK) LIMITED            ,"1,237.50",Apr-23
EREWASH BOROUGH COUNCIL,22097,Building Control - Fee Earning,Agency Staff                  ,23-Mar-2023,MATCHTECH GROUP (UK) LIMITED            ,825.00,Apr-23
EREWASH BOROUGH COUNCIL,21893,Building Control - Fee Earning,Agency Staff                  ,16-Mar-2023,MATCHTECH GROUP (UK) LIMITED            ,"1,650.00",Apr-23
EREWASH BOROUGH COUNCIL,22098,Building Control - Fee Earning,Agency Staff                  ,23-Mar-2023,MATCHTECH GROUP (UK) LIMITED            ,"1,650.00",Apr-23
EREWASH BOROUGH COUNCIL,21579,Building Control - Fee Earning,Agency Staff                  ,08-Mar-2023,MATCHTECH GROUP (UK) LIMITED            ,825.00,Apr-23
EREWASH BOROUGH COUNCIL,21578,Building Control - Fee Earning,Agency Staff                  ,08-Mar-2023,MATCHTECH GROUP (UK) LIMITED            ,"1,608.75",Apr-23
EREWASH BOROUGH COUNCIL,21892,Building Control - Fee Earning,Agency Staff                  ,16-Mar-2023,MATCHTECH GROUP (UK) LIMITED            ,825.00,Apr-23
EREWASH BOROUGH COUNCIL,21573,Property and Estates          ,Repairs and Maintenance       ,08-Mar-2023,MDB PLUMBING (NOTTM) LTD                ,642.83,Apr-23
EREWASH BOROUGH COUNCIL,21574,West Park Nursery             ,PPM Mechanical and Equipment  ,08-Mar-2023,MDB PLUMBING (NOTTM) LTD                ,890.49,Apr-23
EREWASH BOROUGH COUNCIL,21630,Rutland Sports Park           ,PPM Mechanical and Equipment  ,11-Mar-2023,MDB PLUMBING (NOTTM) LTD                ,336.71,Apr-23
EREWASH BOROUGH COUNCIL,22506,Property and Estates          ,External Property Works       ,24-Mar-2023,MIDLAND ROOFING SERVICES  (DERBY) LTD   ,"29,013.81",Apr-23
EREWASH BOROUGH COUNCIL,22764,ICT Support Services          ,Software Licences             ,28-Feb-2023,MILLGATE LTD                            ,"1,868.48",Apr-23
EREWASH BOROUGH COUNCIL,22764,ICT Support Services          ,Software Licences             ,28-Feb-2023,MILLGATE LTD                            ,"2,995.81",Apr-23
EREWASH BOROUGH COUNCIL,22198,ICT Support Services          ,General Equipment             ,21-Mar-2023,MISCO TECHNOLOGIES LTD                  ,856.00,Apr-23
EREWASH BOROUGH COUNCIL,22197,ICT Support Services          ,General Equipment             ,22-Mar-2023,MISCO TECHNOLOGIES LTD                  ,"1,578.00",Apr-23
EREWASH BOROUGH COUNCIL,22197,ICT Support Services          ,General Equipment             ,22-Mar-2023,MISCO TECHNOLOGIES LTD                  ,428.00,Apr-23
EREWASH BOROUGH COUNCIL,22770,ICT Support Services          ,General Equipment             ,31-Mar-2023,MISCO TECHNOLOGIES LTD                  ,521.00,Apr-23
EREWASH BOROUGH COUNCIL,22569,Parish Precepts               ,Parish Precepts               ,04-Apr-2023,MORLEY PARISH COUNCIL                   ,"5,600.00",Apr-23
EREWASH BOROUGH COUNCIL,22569,Parish Council Concurrent Func,Parish Concurrent Grants      ,04-Apr-2023,MORLEY PARISH COUNCIL                   ,"1,223.00",Apr-23
EREWASH BOROUGH COUNCIL,22540,Dog Control                   ,Veterinary Fees               ,31-Mar-2023,MORLEY VETERINARY PRACTICE LTD          ,410.01,Apr-23
EREWASH BOROUGH COUNCIL,21631,Homelessness                  ,Temporary Accommodation       ,21-Feb-2023,MR K. SINGH - ADFAN LTD                 ,700.00,Apr-23
EREWASH BOROUGH COUNCIL,21955,Street Scene                  ,Street Furniture              ,17-Mar-2023,NIBRA SIGNS LTD                         ,"1,760.00",Apr-23
EREWASH BOROUGH COUNCIL,21955,Street Scene                  ,Maintenance of Bus Shelters   ,17-Mar-2023,NIBRA SIGNS LTD                         ,611.56,Apr-23
EREWASH BOROUGH COUNCIL,22213,Homelessness                  ,Fees Costs and Expenses       ,23-Mar-2023,NORTH EAST DERBYSHIRE DISTRICT COUNCIL. ,"19,740.53",Apr-23
EREWASH BOROUGH COUNCIL,22570,Parish Precepts               ,Parish Precepts               ,04-Apr-2023,OCKBROOK AND BORROWASH PARISH COUNCIL   ,"126,527.00",Apr-23
EREWASH BOROUGH COUNCIL,22570,Parish Council Concurrent Func,Parish Concurrent Grants      ,04-Apr-2023,OCKBROOK AND BORROWASH PARISH COUNCIL   ,"21,359.00",Apr-23
EREWASH BOROUGH COUNCIL,21480,Household Waste Collection    ,Bins                          ,07-Mar-2023,ONE51 ES PLASTICS (UK) LIMITED(MGB)     ,"3,065.40",Apr-23
EREWASH BOROUGH COUNCIL,21480,Household Waste Collection    ,Bins                          ,07-Mar-2023,ONE51 ES PLASTICS (UK) LIMITED(MGB)     ,"3,301.20",Apr-23
EREWASH BOROUGH COUNCIL,21480,Kerbside Recycling Collection ,Bins                          ,07-Mar-2023,ONE51 ES PLASTICS (UK) LIMITED(MGB)     ,"7,781.40",Apr-23
EREWASH BOROUGH COUNCIL,22781,Dog Control                   ,Materials and Consumables     ,30-Mar-2023,ORBIS PROTECT LIMITED                   ,363.60,Apr-23
EREWASH BOROUGH COUNCIL,22447,Infec Disease & Food Poisoning,Fees Costs and Expenses       ,29-Mar-2023,OSBORNE RICHARDSON                      ,686.00,Apr-23
EREWASH BOROUGH COUNCIL,22013,Infec Disease & Food Poisoning,Contracted Services           ,22-Mar-2023,OYSTER PARTNERSHIP LTD                  ,612.42,Apr-23
EREWASH BOROUGH COUNCIL,23023,Environmental Protection Act  ,Work In Default               ,31-Mar-2023,P G BOSWORTH LIMITED                    ,520.00,Apr-23
EREWASH BOROUGH COUNCIL,22505,Contaminated Land             ,Site Investigations           ,30-Mar-2023,P G BOSWORTH LIMITED                    ,260.00,Apr-23
EREWASH BOROUGH COUNCIL,22938,Leisure Services              ,Contracted Services           ,17-Apr-2023,PARKWOOD LEISURE LTD                    ,"27,884.40",Apr-23
EREWASH BOROUGH COUNCIL,23234,EBC Balance Sheet             ,EBC Fit for Work Scheme       ,24-Apr-2023,PARKWOOD LEISURE LTD                    ,493.00,Apr-23
EREWASH BOROUGH COUNCIL,22750,Household Waste Collection    ,Repairs and Maintenance       ,13-Mar-2023,PARTIC MOTOR SPARES LTD                 ,320.00,Apr-23
EREWASH BOROUGH COUNCIL,22471,Kerbside Recycling Collection ,General Equipment             ,06-Mar-2023,PARTIC MOTOR SPARES LTD                 ,"3,261.43",Apr-23
EREWASH BOROUGH COUNCIL,22905,Community Grants              ,Project Grants                ,13-Apr-2023,FRIENDS OF BENNERLEY VIADUCT,500.00,Apr-23
EREWASH BOROUGH COUNCIL,22462,Community Grants              ,Project Grants                ,30-Mar-2023,ISLAND COMMUNITY HAVEN CIC,500.00,Apr-23
EREWASH BOROUGH COUNCIL,22463,Community Grants              ,Project Grants                ,30-Mar-2023,ILKESTON PHOTO 2000,416.00,Apr-23
EREWASH BOROUGH COUNCIL,22280,Community Grants              ,Grants and Subscriptions      ,29-Mar-2023,LONG EATON AIR CADETS,300.00,Apr-23
EREWASH BOROUGH COUNCIL,22281,Community Grants              ,Grants and Subscriptions      ,29-Mar-2023,LONG EATON & DISTRICT U3A,500.00,Apr-23
EREWASH BOROUGH COUNCIL,22284,Community Grants              ,Grants and Subscriptions      ,29-Mar-2023,ALL BEING WELL,300.00,Apr-23
EREWASH BOROUGH COUNCIL,22971,Household Waste Collection    ,Road Taxes                    ,18-Apr-2023,POST OFFICE,600.00,Apr-23
EREWASH BOROUGH COUNCIL,23351,Household Waste Collection    ,Road Taxes                    ,26-Apr-2023,POST OFFICE,600.00,Apr-23
EREWASH BOROUGH COUNCIL,22712,Household Waste Collection    ,Road Taxes                    ,06-Apr-2023,POST OFFICE,"1,200.00",Apr-23
EREWASH BOROUGH COUNCIL,22971,Kerbside Recycling Collection ,Road Taxes                    ,18-Apr-2023,POST OFFICE,300.00,Apr-23
EREWASH BOROUGH COUNCIL,23351,Kerbside Recycling Collection ,Road Taxes                    ,26-Apr-2023,POST OFFICE,300.00,Apr-23
EREWASH BOROUGH COUNCIL,22712,Kerbside Recycling Collection ,Road Taxes                    ,06-Apr-2023,POST OFFICE,300.00,Apr-23
EREWASH BOROUGH COUNCIL,22971,Green Space                   ,Road Taxes                    ,18-Apr-2023,POST OFFICE,"1,450.00",Apr-23
EREWASH BOROUGH COUNCIL,23351,Green Space                   ,Road Taxes                    ,26-Apr-2023,POST OFFICE,"1,600.00",Apr-23
EREWASH BOROUGH COUNCIL,22712,Green Space                   ,Road Taxes                    ,06-Apr-2023,POST OFFICE,"1,450.00",Apr-23
EREWASH BOROUGH COUNCIL,22971,Neighbourhood Wardens         ,Road Taxes                    ,18-Apr-2023,POST OFFICE,290.00,Apr-23
EREWASH BOROUGH COUNCIL,23351,Neighbourhood Wardens         ,Road Taxes                    ,26-Apr-2023,POST OFFICE,320.00,Apr-23
EREWASH BOROUGH COUNCIL,22712,Neighbourhood Wardens         ,Road Taxes                    ,06-Apr-2023,POST OFFICE,290.00,Apr-23
EREWASH BOROUGH COUNCIL,23141,,,17-Apr-2023,PENHAM EXCEL LIMITED                    ,956.85,Apr-23
EREWASH BOROUGH COUNCIL,22544,,,03-Apr-2023,PENHAM EXCEL LIMITED                    ,325.68,Apr-23
EREWASH BOROUGH COUNCIL,22886,Green Space                   ,Materials and Consumables     ,03-Apr-2023,PENTLAND PLANTS LTD                     ,"3,586.60",Apr-23
EREWASH BOROUGH COUNCIL,22685,Green Space                   ,Materials and Consumables     ,20-Mar-2023,PENTLAND PLANTS LTD                     ,253.00,Apr-23
EREWASH BOROUGH COUNCIL,22515,Homelessness                  ,Fees Costs and Expenses       ,29-Mar-2023,PEOPLE POTENTIAL POSSIBILITIES          ,"44,000.00",Apr-23
EREWASH BOROUGH COUNCIL,22974,Planning                      ,External Property Works       ,25-Feb-2023,PER CONSULTING LTD                      ,"10,000.00",Apr-23
EREWASH BOROUGH COUNCIL,22439,Green Space                   ,Materials and Consumables     ,29-Mar-2023,PETERSFIELD GROWING MEDIUM LTD          ,"3,120.00",Apr-23
EREWASH BOROUGH COUNCIL,22439,Street Scene                  ,Hire Charges                  ,29-Mar-2023,PETERSFIELD GROWING MEDIUM LTD          ,422.00,Apr-23
EREWASH BOROUGH COUNCIL,22539,Civic Transport               ,Hire Charges                  ,31-Mar-2023,PINNACLE EXECUTIVE CARS LIMITED         ,"1,245.10",Apr-23
EREWASH BOROUGH COUNCIL,22448,Planning Policy               ,Consultants Fees              ,29-Mar-2023,PLANNING INSPECTORATE                   ,"13,921.86",Apr-23
EREWASH BOROUGH COUNCIL,22900,Development Control           ,Planning Fees                 ,13-Apr-2023,PORTALPLANQUEST LTD                     ,462.00,Apr-23
EREWASH BOROUGH COUNCIL,21948,Household Waste Collection    ,Bins                          ,13-Mar-2023,PROTECTIVE WEAR SUPPLIES LTD            ,372.10,Apr-23
EREWASH BOROUGH COUNCIL,22547,Green Space                   ,Materials and Consumables     ,31-Mar-2023,PROTECTIVE WEAR SUPPLIES LTD            ,276.32,Apr-23
EREWASH BOROUGH COUNCIL,20799,Green Space                   ,Materials and Consumables     ,10-Feb-2023,PROTECTIVE WEAR SUPPLIES LTD            ,277.56,Apr-23
EREWASH BOROUGH COUNCIL,20980,Green Space                   ,Materials and Consumables     ,15-Feb-2023,PROTECTIVE WEAR SUPPLIES LTD            ,351.60,Apr-23
EREWASH BOROUGH COUNCIL,22683,Economic Development          ,Contracted Services           ,01-Apr-2023,PROXIMITY FUTURES T/A ELEPHANT WIFI     ,303.33,Apr-23
EREWASH BOROUGH COUNCIL,23236,EBC Balance Sheet             ,Payroll Coll Acc - AVCS       ,24-Apr-2023,PRUDENTIAL                              ,"1,121.00",Apr-23
EREWASH BOROUGH COUNCIL,21757,VAT - (Corporate matters only),Consultants Fees              ,10-Mar-2023,PS TAX                                  ,"3,266.66",Apr-23
EREWASH BOROUGH COUNCIL,22297,Play Areas                    ,Materials and Consumables     ,16-Mar-2023,RAILWAY SLEEPERS Ltd                    ,281.40,Apr-23
EREWASH BOROUGH COUNCIL,21759,Trees Hedges Local Nature Res ,Contracted Services           ,13-Mar-2023,RAMMSANDERSON ECOLOGY LTD               ,936.00,Apr-23
EREWASH BOROUGH COUNCIL,22722,Building Control - Fee Earning,Agency Staff                  ,31-Mar-2023,REED SPECIALIST RECRUITMENT LTD         ,829.17,Apr-23
EREWASH BOROUGH COUNCIL,22142,Building Control - Fee Earning,Agency Staff                  ,17-Mar-2023,REED SPECIALIST RECRUITMENT LTD         ,663.34,Apr-23
EREWASH BOROUGH COUNCIL,22520,Building Control - Fee Earning,Agency Staff                  ,24-Mar-2023,REED SPECIALIST RECRUITMENT LTD         ,829.17,Apr-23
EREWASH BOROUGH COUNCIL,21959,Building Control - Fee Earning,Agency Staff                  ,10-Mar-2023,REED SPECIALIST RECRUITMENT LTD         ,823.57,Apr-23
EREWASH BOROUGH COUNCIL,22571,Parish Precepts               ,Parish Precepts               ,04-Apr-2023,RISLEY WITH HOPWELL PARISH COUNCIL      ,"10,920.00",Apr-23
EREWASH BOROUGH COUNCIL,22571,Parish Council Concurrent Func,Parish Concurrent Grants      ,04-Apr-2023,RISLEY WITH HOPWELL PARISH COUNCIL      ,"6,613.00",Apr-23
EREWASH BOROUGH COUNCIL,23193,Homelessness                  ,Fees Costs and Expenses       ,24-Apr-2023,ROBERT ELLIS  & CO LTD                  ,980.76,Apr-23
EREWASH BOROUGH COUNCIL,22276,Revenues and Benefits         ,Postages                      ,29-Mar-2023,ROYAL MAIL GROUP LTD.                   ,799.52,Apr-23
EREWASH BOROUGH COUNCIL,22010,Revenues and Benefits         ,Postages                      ,22-Mar-2023,ROYAL MAIL GROUP LTD.                   ,"1,292.40",Apr-23
EREWASH BOROUGH COUNCIL,21432,Revenues and Benefits         ,Postages                      ,07-Mar-2023,ROYAL MAIL GROUP LTD.                   ,360.00,Apr-23
EREWASH BOROUGH COUNCIL,21461,Revenues and Benefits         ,Postages                      ,08-Mar-2023,ROYAL MAIL GROUP LTD.                   ,632.20,Apr-23
EREWASH BOROUGH COUNCIL,21802,Revenues and Benefits         ,Postages                      ,15-Mar-2023,ROYAL MAIL GROUP LTD.                   ,"1,064.64",Apr-23
EREWASH BOROUGH COUNCIL,21956,Green Space                   ,Repairs and Maintenance       ,17-Mar-2023,RUSSELLS (KIRBYMOORSIDE) LIMITED        ,"1,110.65",Apr-23
EREWASH BOROUGH COUNCIL,22572,Parish Precepts               ,Parish Precepts               ,04-Apr-2023,SANDIACRE PARISH COUNCIL                ,"60,785.00",Apr-23
EREWASH BOROUGH COUNCIL,22572,Parish Council Concurrent Func,Parish Concurrent Grants      ,04-Apr-2023,SANDIACRE PARISH COUNCIL                ,"24,046.00",Apr-23
EREWASH BOROUGH COUNCIL,22573,Parish Precepts               ,Parish Precepts               ,04-Apr-2023,SAWLEY PARISH COUNCIL                   ,"49,849.92",Apr-23
EREWASH BOROUGH COUNCIL,22573,Parish Council Concurrent Func,Parish Concurrent Grants      ,04-Apr-2023,SAWLEY PARISH COUNCIL                   ,"1,909.00",Apr-23
EREWASH BOROUGH COUNCIL,21627,Elections                     ,General Equipment             ,11-Mar-2023,SCI PRINT LTD                           ,"4,961.30",Apr-23
EREWASH BOROUGH COUNCIL,22998,ICT Support Services          ,Security                      ,13-Apr-2023,SECTIGO LTD                             ,"1,248.75",Apr-23
EREWASH BOROUGH COUNCIL,22184,Street Scene                  ,Maintenance of Bus Shelters   ,22-Mar-2023,SHELTER MAINTENANCE CO                  ,"3,322.51",Apr-23
EREWASH BOROUGH COUNCIL,22184,Street Scene                  ,Maintenance of Bus Shelters   ,22-Mar-2023,SHELTER MAINTENANCE CO                  ,530.49,Apr-23
EREWASH BOROUGH COUNCIL,23000,Elections                     ,General Equipment             ,13-Apr-2023,SHERWOOD HIRE LTD                       ,573.75,Apr-23
EREWASH BOROUGH COUNCIL,22574,Parish Precepts               ,Parish Precepts               ,04-Apr-2023,STANLEY & STANLEY COMMON PARISH COUNCIL ,"26,395.00",Apr-23
EREWASH BOROUGH COUNCIL,22574,Parish Council Concurrent Func,Parish Concurrent Grants      ,04-Apr-2023,STANLEY & STANLEY COMMON PARISH COUNCIL ,"7,434.00",Apr-23
EREWASH BOROUGH COUNCIL,22575,Parish Precepts               ,Parish Precepts               ,04-Apr-2023,STANTON-BY-DALE PARISH COUNCIL          ,"28,774.00",Apr-23
EREWASH BOROUGH COUNCIL,22575,Parish Council Concurrent Func,Parish Concurrent Grants      ,04-Apr-2023,STANTON-BY-DALE PARISH COUNCIL          ,"4,079.00",Apr-23
EREWASH BOROUGH COUNCIL,21692,Public Conveniences           ,Materials and Consumables     ,13-Mar-2023,STEELCRAFT FABRICATIONS                 ,980.00,Apr-23
EREWASH BOROUGH COUNCIL,22557,Corporate Health and Safety   ,Water Testing                 ,31-Mar-2023,STERILIZING SERVICES LTD                ,831.40,Apr-23
EREWASH BOROUGH COUNCIL,21381,Corporate Health and Safety   ,Water Testing                 ,28-Feb-2023,STERILIZING SERVICES LTD                ,"1,209.60",Apr-23
EREWASH BOROUGH COUNCIL,22192,CCTV - Ilkeston and Long Eaton,Contracted Services           ,21-Mar-2023,SYNECTICS SECURITY LIMITED              ,320.00,Apr-23
EREWASH BOROUGH COUNCIL,21995,Kerbside Recycling Collection ,General Equipment             ,21-Mar-2023,T H HEATH  CONTRACTS  LTD               ,280.00,Apr-23
EREWASH BOROUGH COUNCIL,22271,Infec Disease & Food Poisoning,Contracted Services           ,27-Mar-2023,TECHNOWORLD PLC                         ,"4,200.00",Apr-23
EREWASH BOROUGH COUNCIL,22271,ICT Support Services          ,General Equipment             ,27-Mar-2023,TECHNOWORLD PLC                         ,"4,500.00",Apr-23
EREWASH BOROUGH COUNCIL,22271,ICT Support Services          ,Maintenance of Equipment      ,27-Mar-2023,TECHNOWORLD PLC                         ,"1,500.00",Apr-23
EREWASH BOROUGH COUNCIL,22271,Development Control           ,General Equipment             ,27-Mar-2023,TECHNOWORLD PLC                         ,"1,850.00",Apr-23
EREWASH BOROUGH COUNCIL,22271,Development Control           ,General Equipment             ,27-Mar-2023,TECHNOWORLD PLC                         ,"1,330.00",Apr-23
EREWASH BOROUGH COUNCIL,22271,Development Control           ,General Equipment             ,27-Mar-2023,TECHNOWORLD PLC                         ,420.00,Apr-23
EREWASH BOROUGH COUNCIL,22271,Human Resources and ICT       ,"Plant, Machinery and Equipment",27-Mar-2023,TECHNOWORLD PLC                         ,"28,200.00",Apr-23
EREWASH BOROUGH COUNCIL,22907,Revenues and Benefits         ,Postages                      ,31-Mar-2023,TELSOLUTIONS LTD                        ,300.00,Apr-23
EREWASH BOROUGH COUNCIL,22466,Household Waste Collection    ,Repairs and Maintenance       ,30-Mar-2023,TERBERG MATEC UK                        ,296.87,Apr-23
EREWASH BOROUGH COUNCIL,22298,Household Waste Collection    ,Repairs and Maintenance       ,27-Mar-2023,TERBERG MATEC UK                        ,488.97,Apr-23
EREWASH BOROUGH COUNCIL,23314,Operational Services          ,Vehicles                      ,03-Apr-2023,TERBERG MATEC UK                        ,355.01,Apr-23
EREWASH BOROUGH COUNCIL,22996,Operational Services          ,Vehicles                      ,22-Mar-2023,TERBERG MATEC UK                        ,355.00,Apr-23
EREWASH BOROUGH COUNCIL,22994,Operational Services          ,Vehicles                      ,03-Apr-2023,TERBERG MATEC UK                        ,371.01,Apr-23
EREWASH BOROUGH COUNCIL,23316,Operational Services          ,Vehicles                      ,03-Apr-2023,TERBERG MATEC UK                        ,338.99,Apr-23
EREWASH BOROUGH COUNCIL,22991,Operational Services          ,Vehicles                      ,03-Apr-2023,TERBERG MATEC UK                        ,"187,848.00",Apr-23
EREWASH BOROUGH COUNCIL,22993,Operational Services          ,Vehicles                      ,03-Apr-2023,TERBERG MATEC UK                        ,"187,848.00",Apr-23
EREWASH BOROUGH COUNCIL,23315,Operational Services          ,Vehicles                      ,03-Apr-2023,TERBERG MATEC UK                        ,"187,848.00",Apr-23
EREWASH BOROUGH COUNCIL,22995,Operational Services          ,Vehicles                      ,22-Mar-2023,TERBERG MATEC UK                        ,"180,379.00",Apr-23
EREWASH BOROUGH COUNCIL,22767,Development Control           ,Consultants Fees              ,31-Mar-2023,TERRAQUEST DATA SOLUTIONS               ,"1,000.00",Apr-23
EREWASH BOROUGH COUNCIL,22766,Development Control           ,Consultants Fees              ,31-Mar-2023,TERRAQUEST DATA SOLUTIONS               ,"2,731.92",Apr-23
EREWASH BOROUGH COUNCIL,23912,Transport Trading Account     ,Fuel                          ,30-Apr-2023,THE RIGHT FUELCARD COMPANY LTD          ,"1,251.06",Apr-23
EREWASH BOROUGH COUNCIL,22592,Civic Duties Hospitality      ,Civic Regalia and Robes       ,23-Jan-2023,THOMAS FATTORINI LTD                    ,442.10,Apr-23
EREWASH BOROUGH COUNCIL,22592,Civic Duties Hospitality      ,Civic Regalia and Robes       ,23-Jan-2023,THOMAS FATTORINI LTD                    ,415.43,Apr-23
EREWASH BOROUGH COUNCIL,22592,Civic Duties Hospitality      ,Civic Regalia and Robes       ,23-Jan-2023,THOMAS FATTORINI LTD                    ,488.44,Apr-23
EREWASH BOROUGH COUNCIL,23278,Training - HR Only            ,Courses and Seminars          ,31-Mar-2023,THOMAS TELFORD LTD                      ,368.42,Apr-23
EREWASH BOROUGH COUNCIL,22558,Registration of Electors      ,Subscriptions                 ,01-Apr-2023,THOMSON REUTERS                         ,343.00,Apr-23
EREWASH BOROUGH COUNCIL,22578,Legal Services                ,Reference Literature and Publi,01-Apr-2023,THOMSON REUTERS                         ,"13,690.32",Apr-23
EREWASH BOROUGH COUNCIL,22538,Legal Services                ,Reference Literature and Publi,10-Feb-2023,THOMSON REUTERS                         ,"1,111.80",Apr-23
EREWASH BOROUGH COUNCIL,21976,Closed Cemeteries             ,Planned Preventative Maintenan,17-Mar-2023,TIME ASSURED LIMITED                    ,"1,950.00",Apr-23
EREWASH BOROUGH COUNCIL,22698,Green Space                   ,Contracted Services           ,30-Mar-2023,TOM RICHARDS TREE SERVICES              ,"1,550.00",Apr-23
EREWASH BOROUGH COUNCIL,22094,Erewash Museum                ,Electricity                   ,14-Mar-2023,TOTALENERGIES GAS & POWER LTD           ,692.42,Apr-23
EREWASH BOROUGH COUNCIL,21898,Erewash Museum                ,Gas                           ,15-Mar-2023,TOTALENERGIES GAS & POWER LTD           ,490.93,Apr-23
EREWASH BOROUGH COUNCIL,22093,Green Space                   ,Electricity                   ,14-Mar-2023,TOTALENERGIES GAS & POWER LTD           ,"2,067.98",Apr-23
EREWASH BOROUGH COUNCIL,22094,Green Space                   ,Electricity                   ,14-Mar-2023,TOTALENERGIES GAS & POWER LTD           ,763.19,Apr-23
EREWASH BOROUGH COUNCIL,22094,Green Space                   ,Electricity                   ,14-Mar-2023,TOTALENERGIES GAS & POWER LTD           ,"3,668.37",Apr-23
EREWASH BOROUGH COUNCIL,21898,Green Space                   ,Gas                           ,15-Mar-2023,TOTALENERGIES GAS & POWER LTD           ,367.72,Apr-23
EREWASH BOROUGH COUNCIL,21898,Green Space                   ,Gas                           ,15-Mar-2023,TOTALENERGIES GAS & POWER LTD           ,284.29,Apr-23
EREWASH BOROUGH COUNCIL,22094,Cemeteries                    ,Electricity                   ,14-Mar-2023,TOTALENERGIES GAS & POWER LTD           ,366.72,Apr-23
EREWASH BOROUGH COUNCIL,22094,Public Conveniences           ,Electricity                   ,14-Mar-2023,TOTALENERGIES GAS & POWER LTD           ,"1,050.56",Apr-23
EREWASH BOROUGH COUNCIL,22094,CCTV - Ilkeston and Long Eaton,Electricity                   ,14-Mar-2023,TOTALENERGIES GAS & POWER LTD           ,650.54,Apr-23
EREWASH BOROUGH COUNCIL,22094,Car Parking                   ,Electricity                   ,14-Mar-2023,TOTALENERGIES GAS & POWER LTD           ,"1,365.80",Apr-23
EREWASH BOROUGH COUNCIL,22094,Ilkeston Market               ,Electricity                   ,14-Mar-2023,TOTALENERGIES GAS & POWER LTD           ,694.97,Apr-23
EREWASH BOROUGH COUNCIL,22094,Shopmobility - Ilkeston       ,Electricity                   ,14-Mar-2023,TOTALENERGIES GAS & POWER LTD           ,374.28,Apr-23
EREWASH BOROUGH COUNCIL,22094,Shopmobility - Long Eaton     ,Electricity                   ,14-Mar-2023,TOTALENERGIES GAS & POWER LTD           ,593.31,Apr-23
EREWASH BOROUGH COUNCIL,22093,Merlin Way Depot              ,Electricity                   ,14-Mar-2023,TOTALENERGIES GAS & POWER LTD           ,"4,364.79",Apr-23
EREWASH BOROUGH COUNCIL,21898,Merlin Way Depot              ,Gas                           ,15-Mar-2023,TOTALENERGIES GAS & POWER LTD           ,846.96,Apr-23
EREWASH BOROUGH COUNCIL,22093,Civic Accommodation Long Eaton,Electricity                   ,14-Mar-2023,TOTALENERGIES GAS & POWER LTD           ,"2,985.61",Apr-23
EREWASH BOROUGH COUNCIL,21898,Civic Accommodation Long Eaton,Gas                           ,15-Mar-2023,TOTALENERGIES GAS & POWER LTD           ,"1,124.15",Apr-23
EREWASH BOROUGH COUNCIL,21898,Bridge House - Long Eaton     ,Gas                           ,15-Mar-2023,TOTALENERGIES GAS & POWER LTD           ,297.50,Apr-23
EREWASH BOROUGH COUNCIL,22093,Civic Accommodation Ilkeston  ,Electricity                   ,14-Mar-2023,TOTALENERGIES GAS & POWER LTD           ,"2,300.34",Apr-23
EREWASH BOROUGH COUNCIL,22094,Civic Accommodation Ilkeston  ,Electricity                   ,14-Mar-2023,TOTALENERGIES GAS & POWER LTD           ,686.38,Apr-23
EREWASH BOROUGH COUNCIL,21898,Civic Accommodation Ilkeston  ,Gas                           ,15-Mar-2023,TOTALENERGIES GAS & POWER LTD           ,"1,856.08",Apr-23
EREWASH BOROUGH COUNCIL,22094,Toll Bar House                ,Electricity                   ,14-Mar-2023,TOTALENERGIES GAS & POWER LTD           ,"4,594.61",Apr-23
EREWASH BOROUGH COUNCIL,22093,Sandiacre Friesland Sports Ctr,Electricity                   ,14-Mar-2023,TOTALENERGIES GAS & POWER LTD           ,"1,298.25",Apr-23
EREWASH BOROUGH COUNCIL,21898,Sandiacre Friesland Sports Ctr,Gas                           ,15-Mar-2023,TOTALENERGIES GAS & POWER LTD           ,714.30,Apr-23
EREWASH BOROUGH COUNCIL,22435,Play Areas                    ,Materials and Consumables     ,13-Mar-2023,TRADE PARTNERS INTERNATIONAL LTD        ,357.20,Apr-23
EREWASH BOROUGH COUNCIL,21199,Street Scene                  ,Repairs and Maintenance       ,21-Feb-2023,TRUCK LOADERS LIMITED                   ,950.53,Apr-23
EREWASH BOROUGH COUNCIL,21199,Street Scene                  ,Repairs and Maintenance       ,21-Feb-2023,TRUCK LOADERS LIMITED                   ,"1,008.00",Apr-23
EREWASH BOROUGH COUNCIL,21066,Green Space                   ,Materials and Consumables     ,21-Feb-2023,TUDOR ENVIRONMENTAL                     ,"3,501.20",Apr-23
EREWASH BOROUGH COUNCIL,21066,Green Space                   ,Materials and Consumables     ,21-Feb-2023,TUDOR ENVIRONMENTAL                     ,"1,600.80",Apr-23
EREWASH BOROUGH COUNCIL,22459,Homelessness                  ,Temporary Accommodation       ,26-Mar-2023,TUDOR LODGE HOTEL                       ,641.67,Apr-23
EREWASH BOROUGH COUNCIL,21445,Homelessness                  ,Temporary Accommodation       ,07-Mar-2023,TUDOR LODGE HOTEL                       ,291.67,Apr-23
EREWASH BOROUGH COUNCIL,21675,Homelessness                  ,Temporary Accommodation       ,12-Mar-2023,TUDOR LODGE HOTEL                       ,408.34,Apr-23
EREWASH BOROUGH COUNCIL,21243,Homelessness                  ,Temporary Accommodation       ,28-Feb-2023,TUDOR LODGE HOTEL                       ,466.67,Apr-23
EREWASH BOROUGH COUNCIL,21011,Homelessness                  ,Temporary Accommodation       ,20-Feb-2023,TUDOR LODGE HOTEL                       ,326.67,Apr-23
EREWASH BOROUGH COUNCIL,21011,Homelessness                  ,Temporary Accommodation       ,20-Feb-2023,TUDOR LODGE HOTEL                       ,490.00,Apr-23
EREWASH BOROUGH COUNCIL,22777,Homelessness                  ,Leased Properties             ,12-Apr-2023,TUNTUM HOUSING ASSOCIATION.             ,"1,238.25",Apr-23
EREWASH BOROUGH COUNCIL,23237,EBC Balance Sheet             ,Payroll Coll Acc - Trade Union,24-Apr-2023,UNISON                                  ,314.50,Apr-23
EREWASH BOROUGH COUNCIL,22207,Civic Accommodation Ilkeston  ,Planned Preventative Maintenan,27-Mar-2023,V G STOKES & SONS.                      ,448.00,Apr-23
EREWASH BOROUGH COUNCIL,22928,Statement of Accounts         ,Valuation Fees                ,24-Mar-2023,VAUGHTONS                               ,"1,675.00",Apr-23
EREWASH BOROUGH COUNCIL,22675,Homelessness                  ,Temporary Accommodation       ,04-Apr-2023,VICTORIA PARK HOTEL                     ,483.00,Apr-23
EREWASH BOROUGH COUNCIL,22707,Homelessness                  ,Temporary Accommodation       ,06-Apr-2023,VICTORIA PARK HOTEL                     ,552.00,Apr-23
EREWASH BOROUGH COUNCIL,22108,Homelessness                  ,Temporary Accommodation       ,23-Mar-2023,VICTORIA PARK HOTEL                     ,414.00,Apr-23
EREWASH BOROUGH COUNCIL,22101,Homelessness                  ,Temporary Accommodation       ,22-Mar-2023,VICTORIA PARK HOTEL                     ,"1,185.00",Apr-23
EREWASH BOROUGH COUNCIL,22107,Homelessness                  ,Temporary Accommodation       ,23-Mar-2023,VICTORIA PARK HOTEL                     ,"1,560.00",Apr-23
EREWASH BOROUGH COUNCIL,21441,Homelessness                  ,Temporary Accommodation       ,07-Mar-2023,VICTORIA PARK HOTEL                     ,553.00,Apr-23
EREWASH BOROUGH COUNCIL,21441,Homelessness                  ,Temporary Accommodation       ,07-Mar-2023,VICTORIA PARK HOTEL                     ,"1,580.00",Apr-23
EREWASH BOROUGH COUNCIL,21443,Homelessness                  ,Temporary Accommodation       ,07-Mar-2023,VICTORIA PARK HOTEL                     ,"1,008.00",Apr-23
EREWASH BOROUGH COUNCIL,21443,Homelessness                  ,Temporary Accommodation       ,07-Mar-2023,VICTORIA PARK HOTEL                     ,"4,152.00",Apr-23
EREWASH BOROUGH COUNCIL,22479,Homelessness                  ,Temporary Accommodation       ,30-Mar-2023,VICTORIA PARK HOTEL                     ,840.00,Apr-23
EREWASH BOROUGH COUNCIL,21969,ICT Support Services          ,Data Lines                    ,12-Mar-2023,VIRGIN MEDIA BUSINESS                   ,"4,160.85",Apr-23
EREWASH BOROUGH COUNCIL,22667,Green Space                   ,Materials and Consumables     ,31-Mar-2023,WARD RECYCLING                          ,"1,167.06",Apr-23
EREWASH BOROUGH COUNCIL,23294,Green Space                   ,Training                      ,31-Mar-2023,WAYNE PEAPELL CONSULTANCY LTD           ,"1,425.00",Apr-23
EREWASH BOROUGH COUNCIL,22576,Parish Precepts               ,Parish Precepts               ,04-Apr-2023,WEST HALLAM PARISH COUNCIL              ,"49,341.38",Apr-23
EREWASH BOROUGH COUNCIL,22576,Parish Council Concurrent Func,Parish Concurrent Grants      ,04-Apr-2023,WEST HALLAM PARISH COUNCIL              ,"12,514.00",Apr-23
EREWASH BOROUGH COUNCIL,22469,Play Areas                    ,Materials and Consumables     ,30-Mar-2023,WICKSTEED LEISURE LTD                   ,527.00,Apr-23
EREWASH BOROUGH COUNCIL,22468,Play Areas                    ,Materials and Consumables     ,24-Mar-2023,WICKSTEED LEISURE LTD                   ,397.67,Apr-23
